Cogmind - Beta 13 @@@ ROGUE MODE // 2024.08.03 @ 17:25:05 Player: Daffa0360 Result: Self-destructed Performance ------------- Evolutions (1) 500 Regions Visited (2) 400 Robots Destroyed (21) 105 Value Destroyed (396) 396 Prototype IDs (2) 40 Alien Tech Used (0) 0 Bonus (0) 0 TOTAL SCORE: 1441 Bonus ------- None Cogmind --------- Core Integrity 161/400 Matter 266/300 Energy 32/100 System Corruption 0% Temperature Cool (24) Movement Walking (90) Location -9/Materials Parts ------- > --- POWER (1) -------- (None) > --- PROPULSION (2) --- VSS Leg VSS Leg > --- UTILITY (4) ------ Small Storage Unit Weight Redist. System Sensor Array Signal Interpreter > --- WEAPON (2) ------- EM Pulse Cannon > --- INVENTORY (8) ---- Ion Engine Light Deuterium Engine Light Deuterium Engine Improved Targeting Computer ECM Suite Hacking Suite Plasma Cutter Peak State ------------ > --- POWER ------------ Light Deuterium Engine > --- PROPULSION ------- VSS Leg VSS Leg > --- UTILITY ---------- Small Storage Unit Weight Redist. System Sensor Array Signal Interpreter > --- WEAPON ----------- Light EM Pulse Cannon EM Pulse Cannon > --- INVENTORY -------- Light Deuterium Engine Aluminum Leg Heat Sink ECM Suite Hacking Suite EM Pulse Cannon [Rating: 20] Favorites ----------- Power Light Nuclear Core Engine Light Deuterium Engine Power Core Light Nuclear Core Propulsion Hover Unit Leg VSS Leg Hover Unit Hover Unit Utility Small Storage Unit Device Sensor Array Storage Small Storage Unit Processor Signal Interpreter Weapon Medium Laser Energy Gun Medium Laser Energy Cannon Light EM Pulse Cannon Ballistic Gun Assault Rifle Launcher Grenade Launcher Slashing Weapon Mining Claw Build | -11 -10 -9 ------- Run | Yrd Mat Mat Slots Evolved 2 | . . 2 Power . | . . . Propulsion . | . . . Utility 2 | . . 2 Weapon . | . . . Parts Attached 33 | 6 13 14 Power 4 | 1 1 2 Engine 2 | 1 . 1 Core 2 | . 1 1 Reactor . | . . . Propulsion 15 | 2 9 4 Treads . | . . . Leg 4 | 2 . 2 Wheel . | . . . Hover 11 | . 9 2 Flight . | . . . Utility 5 | 1 1 3 Device 3 | . 1 2 Storage 1 | 1 . . Processor 1 | . . 1 Hackware . | . . . Protection . | . . . Artifact . | . . . Weapon 9 | 2 2 5 Energy Gun 2 | 1 1 . Energy Cannon 3 | . . 3 Ballistic Gun 2 | 1 1 . Ballistic Cannon . | . . . Launcher 1 | . . 1 Special Weapon . | . . . Impact Weapon . | . . . Slashing Weapon 1 | . . 1 Piercing Weapon . | . . . Special Melee Weapon . | . . . Unidentified Prototypes 2 | . 1 1 Parts Lost 6 | . . 6 Power 2 | . . 2 Propulsion . | . . . Utility . | . . . Weapon 4 | . . 4 Highest Loss Streak 4 | . . 4 To Critical Strikes . | . . . Average Slot Usage (%) 92 | . 88 97 Engine 6 | . 5 7 Core 6 | . 8 3 Leg 12 | . 10 14 Hover 9 | . 13 6 Device 15 | . 8 22 Storage 12 | . 14 11 Processor 5 | . . 11 Energy Gun 7 | . 13 . Energy Cannon 8 | . . 16 Ballistic Gun 6 | . 12 . Launcher 1 | . . 2 Naked Turns . | . . . Heaviest Build 21 | 14 16 21 Greatest Support 30 | 20 20 30 Greatest Overweight (x) 5 | . 5 1 Average Overweight (x) . | . . . Largest Inventory Capacity 8 | 8 8 8 Average Capacity 7 | 7 8 8 Most Carried 8 | 5 8 8 Average Carried 5 | . 4 6 Final Capacity 8 | 8 8 8 Final Carried 8 | . 8 7 Class Distribution -------------------- 100% | Mutant Dominant Class ---------------- Mutant | -10/Materials Mutant | -9/Materials Resources | -11 -10 -9 ----------- Run | Yrd Mat Mat Matter Collected 598 | 227 196 175 Remotely . | . . . Salvage Created 561 | . 301 260 Parts 52 | . 28 24 Haulers Intercepted 2 | . 1 1 Recyclers Shooed 2 | . 2 . Parts Field Recycled . | . . . Retrieved Matter . | . . . Parts Self-Destructed . | . . . Prevented . | . . . Kills | -11 -10 -9 ------- Run | Yrd Mat Mat Combat Hostiles Destroyed 15 | . 6 9 Melee 1 | . . 1 Guns 8 | . 6 2 Cannons 3 | . . 3 AOE 2 | . . 2 Classes Destroyed 6 | . 5 1 Hauler 2 | . 1 1 Operator 1 | . 1 . Watcher 3 | . 2 1 Swarmer 9 | . 2 7 Grunt 5 | . 4 1 Sentry 1 | . . 1 Best Kill Streak 4 | . 3 4 Combat Bots Only 4 | . 2 4 Max Kills in Single Turn 3 | . 1 3 Gunslinging . | . . . Exploded 2 | . . 2 Melee 1 | . . 1 Uniques/NPCs Destroyed . | . . . Combat | -11 -10 -9 -------- Run | Yrd Mat Mat Hostile Shots Fired 102 | . 24 78 Missed 24 | . 6 18 Damage Taken 932 | . 199 733 Core 285 | . 46 239 Absorbed by Shields . | . . . Core Remaining (%) 90 | 100 81 . Volleys Fired 51 | 1 28 22 Largest 2 | 2 2 2 Hottest 119 | 70 73 119 Shots Fired 85 | 2 56 27 Gun 60 | 2 56 2 Cannon 22 | . . 22 Launcher 3 | . . 3 Special . | . . . Kinetic 29 | 1 28 . Thermal 31 | 1 28 2 Explosive 3 | . . 3 Electromagnetic 22 | . . 22 Robot Hit Streak 12 | . 12 8 Robot Miss Streak 3 | . 3 2 Penetration Max . | . . . Secondary Targets 1 | . 1 . Max Gunslinging Chain 1 | . 1 . Shots Hit Robots 62 | . 36 26 Core Hits 26 | . 17 9 Critical Kills . | . . . Critical Parts Destroyed . | . . . Critical Strikes 2 | . . 2 Burn 1 | . . 1 Corrupt 1 | . . 1 Melee Attacks 8 | . . 8 Impact . | . . . Slashing 8 | . . 8 Piercing . | . . . Sneak Attacks . | . . . Combat Hostiles . | . . . Follow-up Attacks . | . . . Damage Inflicted 1092 | . 465 627 Guns 489 | . 465 24 Cannons 321 | . . 321 Explosions 114 | . . 114 Melee 168 | . . 168 Ramming . | . . . Kinetic 290 | . 290 . Thermal 199 | . 175 24 Explosive 114 | . . 114 Electromagnetic 321 | . . 321 Impact . | . . . Slashing 168 | . . 168 Piercing . | . . . Highest Corruption 1 | . 1 . Average Corruption 1 | . 1 . Corruption Purged . | . . . Corruption Blocked . | . . . Effects 1 | . 1 . Energy Discharges 1 | . 1 . Overload Shots . | . . . Overflow Damage 16 | . . 16 Projectiles 16 | . . 16 Explosions . | . . . Melee . | . . . Knockbacks . | . . . Impact . | . . . Kinetic . | . . . Secondary . | . . . Self-Inflicted Damage 11 | . . 11 Shots 1 | . . 1 Rammed . | . . . Targets Rammed . | . . . Kicked . | . . . Crushed . | . . . Highest Temperature 135 | 9 135 102 Average Temperature 35 | 6 36 34 Received Heat Transfer 336 | . 96 240 Siege Activations . | . . . Robots Corrupted 1 | . . 1 Combat Hostiles 1 | . . 1 Parts Fried 4 | . . 4 Impact Corruptions . | . . . Robots Melted . | . . . Combat Hostiles . | . . . Parts Melted . | . . . Heat Transferred 666 | . 518 148 Parts Sabotaged . | . . . Parts Stolen . | . . . Parts Stripped . | . . . Power Chain Reactions . | . . . Alert | -11 -10 -9 ------- Run | Yrd Mat Mat Peak Influence 240 | . 174 240 Initial 13 | . . 13 Average 118 | . 90 160 Maximum Alert Level 1 | . . 1 Low Security (%) 85 | 100 100 68 Level 1 14 | . . 31 Level 2 . | . . . Level 3 . | . . . Level 4 . | . . . Level 5 . | . . . High Security . | . . . Max Security . | . . . Squads Dispatched 1 | . 1 . Investigation . | . . . Extermination . | . . . Reinforcement 1 | . 1 . Assault . | . . . Garrison . | . . . Intercept . | . . . Searches Triggered . | . . . Construction Impeded . | . . . Haulers Reinforced . | . . . Active Scanning Responses . | . . . Cargo Convoy Interrupts . | . . . Stealth | -11 -10 -9 --------- Run | Yrd Mat Mat Distress Signals 2 | . 1 1 Communications Jammed . | . . . Distress Signals . | . . . Times Spotted 26 | . 11 15 Peak Tracking Total 4 | . 3 4 Tactical Retreats 2 | . 1 1 Traps | -11 -10 -9 ------- Run | Yrd Mat Mat Traps Triggered 3 | . 3 . Indirectly . | . . . Trap Hack Attempts . | . . . Triggered . | . . . Disarmed . | . . . Reprogrammed . | . . . Reused . | . . . Traps Extracted . | . . . Installed . | . . . Triggered . | . . . Machines | -11 -10 -9 ---------- Run | Yrd Mat Mat Machines Disabled 1 | . . 1 Max in Single Turn 1 | . . 1 Machines Repaired . | . . . Machines Dismantled . | . . . Machines Sabotaged . | . . . Overloaded Fab Kills . | . . . Hacking | -11 -10 -9 --------- Run | Yrd Mat Mat Machines Accessed 5 | . 1 4 Terminals 3 | . . 3 Fabricators . | . . . Repair Stations . | . . . Recycling Units 1 | . 1 . Scanalyzers 1 | . . 1 Garrison Access . | . . . Total Hacks 11 | . 2 9 Successful 7 | . 1 6 Failed 4 | . 1 3 Catastrophic . | . . . Database Lockouts . | . . . Manual 2 | . . 2 Terminals 7 | . . 7 Fabricators . | . . . Repair Stations . | . . . Recycling Units 2 | . 2 . Scanalyzers 2 | . . 2 Garrison Access . | . . . Terminal Hacks 4 | . . 4 Record 1 | . . 1 Robot Analysis 2 | . . 2 Alert Level 1 | . . 1 Fabricator Hacks . | . . . Repair Station Hacks . | . . . Recycling Unit Hacks 1 | . 1 . Retrieve Components 1 | . 1 . Scanalyzer 2 | . . 2 Insert Component 1 | . . 1 Analyze 1 | . . 1 Garrison Access Hacks . | . . . Unauthorized Hacks . | . . . Terminals . | . . . Fabricators . | . . . Repair Stations . | . . . Recycling Units . | . . . Scanalyzers . | . . . Garrison Access . | . . . Data Cores Recovered . | . . . Used . | . . . Hacking Detections 2 | . . 2 Full Trace Events . | . . . Feedback Events . | . . . Feedback Blocked . | . . . Robot Schematics Acquired . | . . . Robots Built . | . . . Authchips . | . . . Time . | . . . Total Robot Build Rating . | . . . Part Schematics Acquired 1 | . . 1 Parts Built . | . . . Authchips . | . . . Time . | . . . Total Part Build Rating . | . . . Parts Repaired . | . . . Time . | . . . Parts Recycled . | . . . Recycled Matter . | . . . Retrieved Matter . | . . . Retrieved Components 9 | . 9 . Parts Scanalyzed 1 | . . 1 Part Schematics Acquired 1 | . . 1 Parts Damaged . | . . . Bothacking | -11 -10 -9 ------------ Run | Yrd Mat Mat Used RIF Installer . | . . . Robots Hacked . | . . . Non-combat . | . . . Combat . | . . . Robot Hacks Applied . | . . . Relay Couplers Released . | . . . Fabnet Peak Effective % . | . . . Robots Rewired . | . . . Allies Hacked . | . . . Hacks Repelled . | . . . Allies | -11 -10 -9 -------- Run | Yrd Mat Mat Total Allies . | . . . Largest Group . | . . . Highest-Rated Group . | . . . Highest-Rated Ally . | . . . Total Orders . | . . . Ally Attacks . | . . . Total Damage . | . . . Kills . | . . . Allies Corrupted . | . . . Allies Melted . | . . . Intel | -11 -10 -9 ------- Run | Yrd Mat Mat Robot Analysis Total 2 | . . 2 Derelict Logs Recovered . | . . . Drone Launches . | . . . Drone Recoveries . | . . . Exploration | -11 -10 -9 ------------- Run | Yrd Mat Mat Turns Passed 1114 | 58 528 528 Spaces Moved 774 | 48 273 453 Core 38 | 20 5 13 Treads . | . . . Legs 404 | 28 99 277 Wheels . | . . . Hover 332 | . 169 163 Flight . | . . . Fastest Speed 50 | 50 116 56 Average Speed 93 | 90 120 78 Slowest Speed 300 | 120 300 100 Overloaded Moves . | . . . Propulsion Burnouts . | . . . Robots Hopped . | . . . Cave-ins Triggered . | . . . Exploration Rate (%) 28 | 3 53 29 Regions Visited 2 Branch Regions . Pre-discovered Areas . | . . . Known Exits Taken . | . . . Unknown Exits Taken 2 | 1 1 . Scrap Searched . | . . . Spaces Dug . | . . . Terrain Destroyed 22 | . . 22 Melee . | . . . Projectile . | . . . AOE 22 | . . 22 Terrain Rammed . | . . . Walls Destroyed . | . . . Machines Disabled . | . . . Actions | -11 -10 -9 --------- Run | Yrd Mat Mat Total 1063 | 60 416 587 Wait 150 | . 83 67 Move 772 | 47 272 453 Hop . | . . . Pick Up 31 | 6 13 12 Fast Attach 2 | . 2 . Attach 22 | 6 6 10 Detach 6 | . 4 2 Swap 10 | . 5 5 Drop 11 | . 3 8 Fire 51 | 1 28 22 Melee 8 | . . 8 Ram . | . . . Kick . | . . . Crush . | . . . Escape Stasis . | . . . Rewire . | . . . Trap . | . . . Miscellaneous . | . . . Route ------- -11/Scrapyard -10/Materials (discovered 2 exits: *Mat / [*Min]) -9/Materials History --------- Turn | Location | Event 14 | -11/Scrapyard | Discovered new exit (range 15) 59 | -11/Scrapyard | Entered Materials 311 | -10/Materials | Build established: Mutant 311 | -10/Materials | Discovered new exit (range 16) 538 | -10/Materials | Discovered new exit (range 14) 587 | -10/Materials | Entered another Materials area 587 | -9/Materials | Evolved 2 slots: Utility x2 1109 | -9/Materials | Core integrity fell below 50% 1115 | -9/Materials | Self-destructed Last Messages --------------- Unit. 00985_ R-06 Scavenger collects Spread Laser. 01009_ Y-45 Defender system terminally corrupted. 01009_ Beam Rifle fried. 01011_ Acquired 58 matter. 01053_ Critical hit (Burn: +37). 01067_ Dropped Aluminum Leg. 01079_ Critical hit (Burn: +37). 01082_ Y-45 Defender misfires. 01082_ Acquired Mining Claw. 01083_ Lgt. EM Pulse Cannon destroyed. 01089_ G-34 Mercenary Ion Engine ripped off. 01091_ Critical hit (Burn: +37). 01092_ G-34 Mercenary destroyed. 01094_ EM Pulse Cannon destroyed. 01103_ Destroyed Lgt. Armor Plating. 01107_ K-01 Serf collects debris. 01111_ Lgt. Deuterium Engine destroyed. 01111_ Mining Claw destroyed. Map ----- +----------------------------------------------------+ | ?????????????????????????? ?????# #### | | ?????????????????????????? ?????#"" # # | | ?????????????????????????? ?????#"" # # | | ??????????????????????????# #?????#"T """ # # | | ??????????????????????????# #?????#"" """ # # | | ??????????????????????????# #?????#"" !""" # + | | ??????????????????????????# #?????# # # | | ??????????????????????????# #?????# # # | | ??????????????????????????# ##############+## # | | ??????????????????????????# ## """ # # | | ??????????????????????????# ## "T" # # | | ?????????????????????###### ## # ###### | | ?????????????????????# # ## # # | | ?????????????????????# "" / #########+## + | | ?????????????????????# "Y # #?????# # "" | | ?????????????????????# "" # #?????# # S"" | | ?????????????????????# ?# #?????# ###### "" | | ?????????????????????# ?# ####### #????# = | | ?????????????????????# *??# # # #????###### | | ?????????????????????# *??# # # #?????????? | | ?????????????????????# ???# # # #?????????? | | ?????????????????????###### # # #?????????? | | ???????????????????##### ## # """# #?????????? | | ???????????????????# T ! # # """# #?????????? | | ???????????????????# Y# # """# #?????????? | | ???????????????????# k@# # # #?????????? | | ???????????????????# [[!Y# # """# #?????????? | | ???????????????????# [ !=+% x "" # #?????????? | | ???????????????????# [/! #[ # "" # ##????????? | | ???????????????????# # # # ####??????? | | ???????????????????######## ####### #####?????? | | ???????????????########### #???## ######## | | ???????????????# #???## # | | ???????????????# #????# # | | ????????????????+## #????# # | | ??????????????????# ### #????# ######## | | ??????????????????# ??### ###????## ########? | | ??????????????????+ ?????# #???????# # #? | | ??????????????????###??????# #???????# # #? | | ???????????????????????????#[#???????# +[ ]#? | | ?????????????????????????### ###?????# # #? | | ?????????????????????????# !*= #?????# # "T" #? | | ?????????????????????????# #?????# # """ #? | | ?????????????????????????# #?????# ########? | | ?????????????????????????# #?????# #???????? | | ?????????????????????????# ####### #???????? | | ?????????????????????????## ### T ## #???????? | | ??????????????????????????# #?# ## #???????? | | ??????????????????????????# #?# ## #???????? | | ??????????????????????????# #?# ## #???????? | +----------------------------------------------------+ Best States ------------- Heat Dissipation 28 Energy Generation 14 Energy Capacity 250 Matter Stores 300 Matter Capacity 300 Sight Range 16 Robot Scan Range 14 Terrain Scan Density 10 Additional Mass Support 6 Evasion (%) 57 Item Schematics ----------------- Hacking Suite | -9/Materials | Scanalyzed Robot Schematics ------------------ None Fabricated ------------ Nothing Alien Tech Used ----------------- None Achievements -------------- None Challenges ------------ None Game ------ Seed LatentUtilityMicrothruster Manual? 0 Play Time 00:15:15 Cumulative 19.5 hours Start 2024.08.03 @ 17:00:47 End 2024.08.03 @ 17:25:05 Sessions 1 Manual Loads 0 Difficulty Rogue Special Mode None Game No. 29 Rogue 25 Adventurer 4 Explorer 0 Win Type - Total 0 Types 0/0/0/0/0/0/0/0/0 Lore% 7 Gallery% 24 Achievement% 16 Wizard Run 0 Options --------- Layout 1 ASCII 0 Keyboard 0 Movement Mouse Keybinds 0 Fullscreen 2 Font 24/Smallcaps Map View 50x35 Zoom Use 0% Tactical HUD 1 Map Filters NONE Filters NONE Steam 1 RUN: c16eaf99-ce19-4918-840f-bd97aaf7b26d